[Event "EYTCC Open U18 2018"]
[Site "Bad Blankeburg"]
[Date "2018.07.17"]
[Round "6"]
[White "Gavrilescu, David"]
[Black "Vogel, Roven"]
[Result "1-0"]
[ECO "B13"]
[WhiteElo "2451"]
[BlackElo "2467"]
[Annotator "ChessBase"]
[PlyCount "99"]
[EventDate "2018.07.12"]
[EventType "swiss"]
[EventCountry "GER"]
[SourceTitle "playchess.com"]
[Source "ChessBase"]
[SourceQuality "1"]
[TimeControl "40/5400+30:1800+30"]

1. e4 {[%emt 0:00:00]} c6 {[%emt 0:00:00]} 2. d4 {[%emt 0:00:36]} d5 {[%emt 0:00:15]} 3. exd5 {[%emt 0:00:32]} cxd5 {[%emt 0:00:10]} 4. Bd3 {[%emt 0:00:30]} Nc6 {[%emt 0:00:09]} 5. c3 {[%emt 0:00:34]} Nf6 {[%emt 0:00:09]} 6. Bf4 {[%emt 0:00:39]} Bg4 {[%emt 0:00:12]} 7. Qb3 {[%emt 0:00:19]} e5 {[%emt 0:00:16]} 8. h3 {[%emt 0:01:05]} Na5 {[%emt 0:00:10]} 9. Qc2 {[%emt 0:00:29]} exf4 {[%emt 0:00:10]} 10. hxg4 {[%emt 0:00:08]} Nxg4 {[%emt 0:00:11]} 11. Qe2+ {[%emt 0:00:18]} Qe7 {[%emt 0:00:12]} 12. Nh3 {[%emt 0:00:29]} f3 {[%emt 0:03:26]} 13. gxf3 {[%emt 0:00:39]} Nf6 {[%emt 0:03:38]} 14. Nd2 {[%emt 0:06:44]} O-O-O {[%emt 0:03:04]} 15. Qxe7 {[%emt 0:09:56]} Bxe7 {[%emt 0:00:11]} 16. Nf1 {[%emt 0:00:18]} g6 {[%emt 0:06:19]} 17. Ne3 {[%emt 0:03:03]} Bd6 {[%emt 0:09:14]} 18. Kd2 {[%emt 0:03:55]} Nc6 {[%emt 0:02:26]} 19. b4 {[%emt 0:13:14]} Rd7 {[%emt 0:04:58]} 20. a4 {[%emt 0:05:55]} Ne7 {[%emt 0:25:23]} 21. a5 {[%emt 0:05:22]} Nh5 {[%emt 0:02:22]} 22. Ng5 {[%emt 0:07:22]} f6 {[%emt 0:05:43]} 23. Nf7 {[%emt 0:05:24]} Rf8 {[%emt 0:00:07]} 24. Nxd6+ {[%emt 0:01:41]} Rxd6 {[%emt 0:00:02]} 25. Nf5 {[%emt 0:01:48]} Nxf5 {[%emt 0:05:36]} 26. Bxf5+ {[%emt 0:00:19]} Kb8 {[%emt 0:01:21]} 27. Bg4 {[%emt 0:05:53]} Nf4 {[%emt 0:00:44]} 28. Rxh7 {[%emt 0:00:07]} Re8 {[%emt 0:00:56]} 29. Re1 {[%emt 0:00:15]} Rdd8 {[%emt 0:02:03]} 30. Bd7 {[%emt 0:03:27]} Rxe1 {[%emt 0:03:15]} 31. Kxe1 {[%emt 0:00:37]} a6 {[%emt 0:00:36]} 32. Kd2 {[%emt 0:04:34]} Kc7 {[%emt 0:02:15]} 33. Ba4+ {[%emt 0:01:13]} Kb8 {[%emt 0:01:23]} 34. Rh4 {[%emt 0:02:25]} g5 {[%emt 0:02:00]} 35. Rh7 {[%emt 0:00:54]} Rd6 {[%emt 0:01:06]} 36. Bd7 {[%emt 0:01:44]} Ng2 {[%emt 0:04:24]} 37. Rh8+ {[%emt 0:03:36]} Ka7 {[%emt 0:00:07]} 38. Rh7 {[%emt 0:01:14]} Kb8 {[%emt 0:00:07]} 39. Kd1 {[%emt 0:04:17]} Nf4 {[%emt 0:01:18]} 40. Kc2 {[%emt 0:01:46]} Ng2 {[%emt 0:01:52]} 41. Kb3 {[%emt 0:32:44]} Ne1 {[%emt 0:34:21]} 42. b5 {[%emt 0:03:43]} axb5 {[%emt 0:00:39]} 43. Kb4 {[%emt 0:00:19]} Nd3+ {[%emt 0:04:27]} 44. Kxb5 {[%emt 0:00:00]} Nf4 {[%emt 0:00:00]} 45. Kc5 {[%emt 0:00:00]} Ra6 {[%emt 0:00:00]} 46. Bb5 {[%emt 0:00:00]} Re6 {[%emt 0:00:00]} 47. Rf7 {[%emt 0:00:00]} Re1 {[%emt 0:00:00]} 48. Rxf6 {[%emt 0:00:00]} Rc1 {[%emt 0:00:00]} 49. Kb6 {[%emt 0:00:00]} Rxc3 {[%emt 0:00:00]} 50. Rf7 {[%emt 0:00:00]} 1-0

[Event "EYTCC Open U18 2018"]
[Site "Bad Blankeburg"]
[Date "2018.07.17"]
[Round "6"]
[White "Lagunow, Raphael"]
[Black "Vasiesiu, Victor"]
[Result "1/2-1/2"]
[ECO "B47"]
[WhiteElo "2411"]
[BlackElo "2295"]
[Annotator "NA RC"]
[PlyCount "100"]
[EventDate "2018.07.12"]
[EventType "swiss"]
[EventCountry "GER"]
[SourceTitle "playchess.com"]
[Source "ChessBase"]
[SourceQuality "1"]
[TimeControl "40/5400+30:1800+30"]

1. e4 {[%emt 0:00:00]} c5 {[%emt 0:00:00]} 2. Nf3 {[%emt 0:00:00]} e6 {[%emt 0:00:00]} 3. d4 {[%emt 0:00:00]} cxd4 {[%emt 0:00:00]} 4. Nxd4 {[%emt 0:00:00]} Nc6 {[%emt 0:00:00]} 5. Nc3 {[%emt 0:00:01]} Qc7 {[%emt 0:00:00]} 6. Qd3 {[%emt 0:00:15] B47: Sicilian: Taimanov: 5 Nc3 Qc7 6 f4, 6 g3 and 6 Be2} (6. Be3 a6 7. Qf3 Nf6 8. O-O-O Ne5 9. Qg3 b5 10. a3 Bb7 11. Bxb5 Rc8 12. Ba4 Nxe4 13. Nxe4 Bxe4 14. Bf4 Qc4 15. Bxe5 Qxa4 {1-0 (38) Vachier Lagrave,M (2789)-Anand,V (2776) Karlsruhe/Baden-Baden 2018}) 6... Nxd4 {[%emt 0:03:16]} 7. Qxd4 {[%emt 0:00:08]} a6 {[%emt 0:00:05]} 8. Be3 {[%emt 0:01:13]} Ne7 {[%emt 0:08:08]} 9. O-O-O {[%emt 0:19:19]} Nc6 {[%emt 0:00:13]} 10. Qb6 {[%emt 0:00:55]} Qxb6 {[%emt 0:05:28]} 11. Bxb6 {[%emt 0:00:07]} d6 $146 {[%emt 0:03:06]} ({Predecessor:} 11... Be7 12. f4 O-O 13. Be2 f5 14. e5 g5 15. g3 {1-0 (27) Jasny,S (2347)-Varejcko,J (2267) Czechia 2010}) 12. f4 {[%emt 0:02:45]} g5 {[%emt 0:05:23]} 13. fxg5 {[%emt 0:10:10]} h6 {[%emt 0:00:10]} 14. g6 {[%emt 0:16:10]} fxg6 {[%emt 0:00:40]} 15. g3 {[%emt 0:01:02]} Ne5 {[%emt 0:09:26]} 16. Be2 {[%emt 0:09:52]} Be7 {[%emt 0:11:00]} 17. h4 {[%emt 0:05:32]} Bd7 {[%emt 0:08:11]} 18. Kb1 {[%emt 0:10:22]} Rc8 {[%emt 0:01:44]} 19. Bd4 {[%emt 0:00:30]} Bf6 {[%emt 0:07:03]} 20. Rhf1 {[%emt 0:02:22]} Ke7 {[%emt 0:00:32]} 21. Bd3 {[%emt 0:04:24]} Rhf8 {[%emt 0:03:24]} 22. Ne2 {[%emt 0:01:25]} g5 {[%emt 0:00:30]} 23. hxg5 {[%emt 0:01:23]} hxg5 {[%emt 0:00:13]} 24. Bc3 {[%emt 0:01:02]} Nxd3 {[%emt 0:13:01]} 25. cxd3 {[%emt 0:02:25]} Bxc3 {[%emt 0:01:48]} 26. Nxc3 {[%emt 0:00:21]} Rxf1 {[%emt 0:00:17]} 27. Rxf1 {[%emt 0:00:01]} Rh8 {[%emt 0:00:11]} 28. Rf2 {[%emt 0:02:41]} Rh3 {[%emt 0:01:40]} 29. Rf3 {[%emt 0:04:33]} Rh2 {[%emt 0:02:03]} 30. a4 {[%emt 0:00:37]} a5 {[%emt 0:03:46]} 31. Ka2 {[%emt 0:01:10]} Rg2 {[%emt 0:00:33]} 32. Ka3 {[%emt 0:00:39]} g4 {[%emt 0:00:30]} 33. Re3 {[%emt 0:00:01]} Rf2 {[%emt 0:00:15]} 34. b4 {[%emt 0:01:29]} Rf3 {[%emt 0:02:17]} 35. Rxf3 $1 {[%emt 0:02:06]} gxf3 {[%emt 0:00:05]} 36. Nd1 {[%emt 0:00:03]} Kf6 {[%emt 0:01:16]} 37. d4 {[%emt 0:00:27]} Bc6 {[%emt 0:09:29]} 38. Nf2 $15 {[%emt 0:00:11]} b6 {[%emt 0:02:06]} 39. b5 {[%emt 0:01:35]} Be8 {[%emt 0:00:58]} 40. Kb2 {[%emt 0:00:40]} Bg6 {[%emt 0:00:39]} 41. Kc3 {[%emt 0:31:40]} d5 {[%emt 0:02:56]} 42. e5+ {[%emt 0:00:00]} Kg5 {[%emt 0:00:12]} 43. Kb2 {[%emt 0:00:00]} Bh7 {[%emt 0:01:53]} 44. Kc1 {[%emt 0:00:00]} Bf5 {[%emt 0:00:11]} 45. Kb2 {[%emt 0:00:00]} Bh3 {[%emt 0:00:12]} 46. Kc3 {[%emt 0:00:00]} Bf1 {[%emt 0:00:08]} 47. Kd2 {[%emt 0:00:00]} Bc4 {[%emt 0:01:09]} 48. Kc3 {[%emt 0:00:00]} Kf5 {[%emt 0:00:28]} 49. Kc2 {[%emt 0:00:00]} Be2 {[%emt 0:00:17]} 50. Kd2 {[%emt 0:00:00]} Kg5 {[%emt 0:00:11]} 1/2-1/2

[Event "EYTCC Open U18 2018"]
[Site "Bad Blankeburg"]
[Date "2018.07.17"]
[Round "6"]
[White "Teclaf, Pawel"]
[Black "Urban, Konstantin"]
[Result "1-0"]
[ECO "B90"]
[WhiteElo "2399"]
[BlackElo "2325"]
[Annotator "NA"]
[PlyCount "126"]
[EventDate "2018.07.12"]
[EventType "swiss"]
[EventCountry "GER"]
[SourceTitle "playchess.com"]
[Source "ChessBase"]
[SourceQuality "1"]
[TimeControl "40/5400+30:1800+30"]

1. e4 {[%emt 0:00:00]} c5 {[%emt 0:00:00]} 2. Nf3 {[%emt 0:00:00]} d6 {[%emt 0:00:00]} 3. d4 {[%emt 0:00:00]} cxd4 {[%emt 0:00:14]} 4. Nxd4 {[%emt 0:00:00]} Nf6 {[%emt 0:00:18]} 5. Nc3 {[%emt 0:00:00]} a6 {[%emt 0:00:15]} 6. Nb3 {[%emt 0:00:00]} e5 {[%emt 0:17:47]} 7. Bg5 {[%emt 0:05:33]} Be7 {[%emt 0:04:10]} 8. Bxf6 {[%emt 0:05:15]} Bxf6 {[%emt 0:00:36]} 9. Nd2 {[%emt 0:03:46]} Be6 {[%emt 0:08:43]} 10. Nc4 {[%emt 0:02:29]} Be7 {[%emt 0:02:37]} 11. Nd5 {[%emt 0:09:45]} Nc6 {[%emt 0:05:12]} 12. c3 {[%emt 0:09:37]} Rc8 {[%emt 0:05:10]} 13. Ncb6 {[%emt 0:08:19]} Rb8 {[%emt 0:01:37] LiveBook: 68 Games} 14. Bd3 {[%emt 0:09:23] B33: Sicilian: Pelikan and Sveshnikov Variations} (14. Bc4 O-O 15. O-O Bg5 16. a4 Kh8 17. Qe2 g6 18. Rad1 Bh6 19. b4 a5 20. bxa5 Nxa5 21. Ba2 f5 22. exf5 gxf5 {½-½ (56) De Homont,R (2359)-Fritsche,F (2328) GER email 2016}) 14... O-O {[%emt 0:02:18]} 15. O-O {[%emt 0:01:01]} Bg5 {[%emt 0:01:39]} 16. a4 {[%emt 0:02:25]} Ne7 {[%emt 0:03:19]} 17. Nxe7+ {[%emt 0:00:42]} Qxe7 {[%emt 0:06:18]} 18. a5 $146 {[%emt 0:00:16]} ({Predecessor:} 18. Qe2 Rbd8 19. Rfd1 g6 20. Bc4 Kg7 21. Bd5 Qc7 {½-½ (71) Csolto,T (2144)-Macko,M (2125) Slovakia 2004}) 18... Qc7 {[%emt 0:02:19]} 19. Bc2 {[%emt 0:04:47]} Qc6 {[%emt 0:05:30]} 20. Bb3 {[%emt 0:01:29]} Bd8 {[%emt 0:12:18]} 21. Bd5 {[%emt 0:10:32]} Qc5 {[%emt 0:00:18]} 22. Bxe6 {[%emt 0:01:23]} Bxb6 {[%emt 0:00:10]} 23. Ba2 {[%emt 0:00:42]} Ba7 {[%emt 0:00:34]} 24. Qd5 {[%emt 0:00:33]} Qxd5 {[%emt 0:00:54]} 25. Bxd5 {[%emt 0:00:02]} Rfc8 {[%emt 0:06:03]} 26. Rfd1 {[%emt 0:05:32]} Kf8 {[%emt 0:05:43]} 27. Rd3 {[%emt 0:02:18]} Ke7 {[%emt 0:00:41]} 28. g3 {[%emt 0:00:44]} Rc7 {[%emt 0:00:16]} 29. Kg2 {[%emt 0:01:00]} Rcc8 {[%emt 0:00:38]} 30. f4 {[%emt 0:01:17]} Rc7 {[%emt 0:00:36]} 31. Rf3 {[%emt 0:01:02]} f6 {[%emt 0:00:14]} 32. fxe5 {[%emt 0:01:26]} dxe5 {[%emt 0:00:02]} 33. g4 {[%emt 0:00:20]} h6 {[%emt 0:01:51]} 34. h4 {[%emt 0:00:36]} Rf8 {[%emt 0:03:33]} 35. Raf1 {[%emt 0:03:13]} b6 {[%emt 0:00:46]} 36. axb6 {[%emt 0:02:02]} Bxb6 {[%emt 0:00:01]} 37. g5 {[%emt 0:00:11]} hxg5 {[%emt 0:01:19]} 38. hxg5 {[%emt 0:00:01]} a5 {[%emt 0:01:16]} 39. Rg3 {[%emt 0:02:45]} Kd8 $16 {[%emt 0:03:25]} 40. gxf6 {[%emt 0:04:35]} Rxf6 {[%emt 0:00:38]} 41. Rg5 {[%emt 0:34:55]} Rxf1 {[%emt 0:06:38]} 42. Kxf1 {[%emt 0:00:00]} a4 {[%emt 0:06:28]} 43. Rxe5 {[%emt 0:00:00]} a3 {[%emt 0:00:36]} 44. bxa3 {[%emt 0:00:00]} Ra7 {[%emt 0:05:00]} 45. Re6 {[%emt 0:00:00]} Bc5 {[%emt 0:00:16]} 46. Ke2 {[%emt 0:00:00]} Rxa3 {[%emt 0:01:08]} 47. Kd3 {[%emt 0:00:00]} Ra7 {[%emt 0:01:01]} 48. Rg6 {[%emt 0:00:00]} Re7 {[%emt 0:01:17]} 49. Be6 {[%emt 0:00:00]} Bd6 {[%emt 0:04:57]} 50. Kd4 {[%emt 0:00:00]} Bf4 {[%emt 0:00:19]} 51. e5 {[%emt 0:00:00]} Kc7 {[%emt 0:00:59]} 52. Kd5 {[%emt 0:00:00]} Bd2 {[%emt 0:02:19]} 53. Bf5 {[%emt 0:00:00]} Bf4 {[%emt 0:00:45]} 54. Rc6+ {[%emt 0:00:00]} Kb7 {[%emt 0:00:05]} 55. e6 {[%emt 0:00:00]} g5 {[%emt 0:01:08]} 56. Rc4 {[%emt 0:00:00]} Bg3 {[%emt 0:00:45]} 57. Rg4 {[%emt 0:00:00]} Bf4 {[%emt 0:03:36]} 58. Rxf4 {[%emt 0:00:10]} gxf4 {[%emt 0:00:10]} 59. Kd6 {[%emt 0:00:06]} Re8 {[%emt 0:01:40]} 60. e7 {[%emt 0:00:17]} Kb6 {[%emt 0:00:40]} 61. Kd7 {[%emt 0:00:43]} Rxe7+ {[%emt 0:00:20]} 62. Kxe7 {[%emt 0:00:05]} Kc5 {[%emt 0:00:02]} 63. Bd3 {[%emt 0:00:04]} Kd5 1-0

[Event "EYTCC Open U18 2018"]
[Site "Bad Blankeburg"]
[Date "2018.07.17"]
[Round "6"]
[White "Gorshtein, Ido"]
[Black "Dobrovoljc, Vid"]
[Result "1/2-1/2"]
[ECO "B67"]
[WhiteElo "2382"]
[BlackElo "2344"]
[Annotator "NA"]
[PlyCount "77"]
[EventDate "2018.07.12"]
[EventType "swiss"]
[EventCountry "GER"]
[SourceTitle "playchess.com"]
[Source "ChessBase"]
[SourceQuality "1"]
[TimeControl "40/5400+30:1800+30"]

1. e4 {[%emt 0:00:00]} c5 {[%emt 0:00:00]} 2. Ne2 {[%emt 0:00:00]} Nc6 {[%emt 0:00:00]} 3. d4 {[%emt 0:00:00]} cxd4 {[%emt 0:00:05]} 4. Nxd4 {[%emt 0:00:00]} Nf6 {[%emt 0:00:36]} 5. Nc3 {[%emt 0:00:00]} d6 {[%emt 0:00:26]} 6. Bg5 {[%emt 0:00:06]} e6 {[%emt 0:00:31]} 7. Qd2 {[%emt 0:00:02]} a6 {[%emt 0:00:07]} 8. O-O-O {[%emt 0:00:06]} Bd7 {[%emt 0:01:15]} 9. f4 {[%emt 0:09:23]} b5 {[%emt 0:03:18]} 10. Bxb5 {[%emt 0:09:03]} axb5 {[%emt 0:02:08]} 11. Ndxb5 {[%emt 0:00:02] B67: Sicilian: Richter-Rauzer: 7...a6 8 0-0-0 Bd7, lines without 9 f4 Be7} Nb4 {[%emt 0:10:17]} 12. Nxd6+ {[%emt 0:36:13]} (12. e5 Nxa2+ 13. Nxa2 Bxb5 14. Nc3 Ne4 15. Qd4 Ra1+ 16. Nb1 Nxg5 17. exd6 h5 18. fxg5 Qxg5+ 19. Rd2 Bd7 20. Rf1 Ra6 21. h4 Qh6 22. Qf2 f6 23. b3 Bxd6 24. Qe2 Rc6 25. Kb2 O-O {0-1 (25) Von Bahr,O (2382)-Barkhagen,J (2563) Sweden 2006}) 12... Bxd6 {[%emt 0:00:31]} 13. Qxd6 {[%emt 0:00:02]} Nxa2+ {[%emt 0:03:40]} 14. Nxa2 {[%emt 0:00:08]} Rxa2 {[%emt 0:00:41]} 15. Bxf6 {[%emt 0:01:00]} Ra1+ $146 {[%emt 0:17:15]} ({Predecessor:} 15... gxf6 16. Kb1 Ra7 17. Rd3 Qc7 18. Qd4 e5 19. fxe5 fxe5 {½-½ (61) Stachanczyk,J (2212)-Dukaczewski,P (2285) Berlin 2009}) 16. Kd2 {[%emt 0:00:01]} Rxd1+ {[%emt 0:00:07]} 17. Rxd1 {[%emt 0:00:05]} gxf6 {[%emt 0:03:04]} 18. Kc1 {[%emt 0:01:15]} Rg8 {[%emt 0:04:31]} 19. g3 {[%emt 0:00:33]} h5 {[%emt 0:02:34]} 20. Rd3 {[%emt 0:01:56]} h4 {[%emt 0:04:09]} 21. b3 {[%emt 0:07:21]} hxg3 {[%emt 0:04:33]} 22. hxg3 {[%emt 0:00:19]} Rh8 {[%emt 0:00:55]} 23. Kb2 {[%emt 0:01:52]} Rh1 {[%emt 0:07:54]} 24. g4 $17 {[%emt 0:02:31]} (24. Rd4 $11 {keeps the balance.}) 24... Qc8 {[%emt 0:16:12]} 25. Rd4 {[%emt 0:02:03]} Bb5 {[%emt 0:04:26]} 26. Qb6 {[%emt 0:01:49]} Ba6 {[%emt 0:03:19]} 27. Rd2 {[%emt 0:09:23]} Qa8 {[%emt 0:01:38]} 28. Rd4 {[%emt 0:00:20]} Bd3 {[%emt 0:01:52]} 29. Ra4 {[%emt 0:01:02]} Qc8 {[%emt 0:00:05]} 30. Qf2 {[%emt 0:00:02]} Qc6 {[%emt 0:05:30]} 31. Qg2 {[%emt 0:07:22]} Rf1 {[%emt 0:02:31]} 32. Qh2 {[%emt 0:03:05]} Qc5 {[%emt 0:00:29]} 33. Qd2 {[%emt 0:02:04]} Qxc2+ {[%emt 0:01:15]} 34. Qxc2 {[%emt 0:00:02]} Bxc2 {[%emt 0:00:07]} 35. Kxc2 {[%emt 0:00:05]} Rxf4 {[%emt 0:00:03]} 36. Kd3 {[%emt 0:02:17]} Rxg4 {[%emt 0:00:18]} 37. Ra7 {[%emt 0:00:02]} f5 {[%emt 0:01:29]} 38. exf5 {[%emt 0:00:09]} exf5 {[%emt 0:00:04]} 39. Rb7 {[%emt 0:00:10]} 1/2-1/2

[Event "EYTCC Open U18 2018"]
[Site "Bad Blankeburg"]
[Date "2018.07.17"]
[Round "6"]
[White "Nikitenko, Mihail"]
[Black "Blohberger, Felix"]
[Result "1/2-1/2"]
[ECO "C07"]
[WhiteElo "2371"]
[BlackElo "2420"]
[Annotator "NA"]
[PlyCount "102"]
[EventDate "2018.07.12"]
[EventType "swiss"]
[EventCountry "GER"]
[SourceTitle "playchess.com"]
[Source "ChessBase"]
[SourceQuality "1"]
[TimeControl "40/5400+30:1800+30"]

1. e4 {[%emt 0:00:00]} e6 {[%emt 0:00:00]} 2. d4 {[%emt 0:00:00]} d5 {[%emt 0:00:00]} 3. Nd2 {[%emt 0:00:00]} c5 {[%emt 0:00:29]} 4. exd5 {[%emt 0:00:00]} Qxd5 {[%emt 0:00:17]} 5. Ngf3 {[%emt 0:00:00]} cxd4 {[%emt 0:00:53]} 6. Bc4 {[%emt 0:00:03]} Qd8 {[%emt 0:00:05]} 7. O-O {[%emt 0:00:05]} a6 {[%emt 0:00:41]} 8. a4 {[%emt 0:01:18] C07: French Tarrasch: 3...c5, 4 Ngf3 and 4 exd5 Qxd5} Nc6 {[%emt 0:01:21]} 9. Nb3 {[%emt 0:00:05]} Bd7 $146 {[%emt 0:00:19]} ({Predecessor:} 9... Nf6 10. Qe2 Bd6 11. Rd1 e5 12. Nbxd4 Nxd4 13. Rxd4 Qe7 14. Rxd6 Qxd6 15. b3 e4 16. Ba3 {0-1 (34) Stany,G (2500)-Ganguly,S (2650) Bhubaneswar 2018}) 10. Qe2 {[%emt 0:01:16]} Bd6 {[%emt 0:01:04]} 11. Rd1 {[%emt 0:00:15]} Nge7 {[%emt 0:04:36]} 12. Nbxd4 {[%emt 0:00:40]} Qc7 {[%emt 0:01:51]} 13. Bg5 {[%emt 0:09:46]} Nxd4 {[%emt 0:13:55]} 14. Rxd4 {[%emt 0:00:31]} Nf5 {[%emt 0:00:56]} 15. Rdd1 {[%emt 0:03:49]} h6 {[%emt 0:02:31]} 16. Bd2 {[%emt 0:00:03]} O-O {[%emt 0:18:59]} 17. Bc3 {[%emt 0:00:25]} Rfd8 {[%emt 0:11:20]} 18. Ne5 {[%emt 0:08:09]} Be8 {[%emt 0:01:34]} 19. Bd3 {[%emt 0:03:05]} Bxe5 {[%emt 0:06:57]} 20. Bxe5 {[%emt 0:00:57]} Qe7 {[%emt 0:04:03]} 21. Qg4 {[%emt 0:10:01]} Qg5 {[%emt 0:06:59]} 22. Qxg5 {[%emt 0:00:05]} hxg5 {[%emt 0:00:04]} 23. c4 {[%emt 0:03:49]} f6 {[%emt 0:05:55]} 24. Bc7 {[%emt 0:00:35]} Rd7 {[%emt 0:02:21]} 25. Bb6 {[%emt 0:00:06]} Ne7 {[%emt 0:04:50]} 26. Bc2 {[%emt 0:08:08]} Rc8 {[%emt 0:06:31]} 27. b3 {[%emt 0:04:41]} Nd5 {[%emt 0:01:43]} 28. Ba5 {[%emt 0:04:41]} b5 {[%emt 0:00:28]} 29. axb5 {[%emt 0:02:39]} axb5 {[%emt 0:00:06]} 30. Bd3 {[%emt 0:00:13]} bxc4 {[%emt 0:01:51]} 31. Bxc4 {[%emt 0:02:38]} Bf7 {[%emt 0:00:35]} 32. g3 {[%emt 0:01:30]} Ra7 {[%emt 0:00:13]} 33. Bd2 {[%emt 0:01:00]} Rxa1 {[%emt 0:01:02]} 34. Rxa1 {[%emt 0:00:05]} Rc7 {[%emt 0:01:32]} 35. Bd3 {[%emt 0:00:57]} Be8 {[%emt 0:00:49]} 36. Ra8 {[%emt 0:13:52]} Kf7 {[%emt 0:00:10]} 37. Rb8 {[%emt 0:00:09]} Bc6 {[%emt 0:00:32]} 38. b4 {[%emt 0:00:46]} Rb7 {[%emt 0:00:08]} 39. Rxb7+ {[%emt 0:01:09]} Bxb7 {[%emt 0:00:03]} 40. b5 {[%emt 0:00:09]} Ke7 {[%emt 0:01:37]} 41. Bc1 $14 {[%emt 0:30:03]} g4 {[%emt 0:15:23]} 42. Ba3+ {[%emt 0:00:00]} Kd7 {[%emt 0:02:05]} 43. Kf1 {[%emt 0:00:00]} g6 {[%emt 0:01:23]} 44. Bxg6 {[%emt 0:00:00]} f5 {[%emt 0:00:06]} 45. Bc5 {[%emt 0:00:00]} Nc7 {[%emt 0:07:59]} 46. b6 {[%emt 0:00:00]} Na8 {[%emt 0:00:38]} 47. Bd4 {[%emt 0:00:00]} Bd5 {[%emt 0:03:31]} 48. Bf7 {[%emt 0:00:00]} Ke7 {[%emt 0:01:16]} 49. Bg8 {[%emt 0:00:00]} Nxb6 {[%emt 0:00:26]} 50. Bc5+ {[%emt 0:00:00]} Kf6 {[%emt 0:00:08]} 51. Bxb6 {[%emt 0:00:00]} Ke5 1/2-1/2

[Event "EYTCC Open U18 2018"]
[Site "Bad Blankeburg"]
[Date "2018.07.17"]
[Round "6"]
[White "Parkhov, Yair"]
[Black "Amon, Nejc"]
[Result "1-0"]
[ECO "D38"]
[WhiteElo "2364"]
[BlackElo "2295"]
[Annotator "NA"]
[PlyCount "103"]
[EventDate "2018.07.12"]
[EventType "swiss"]
[EventCountry "GER"]
[SourceTitle "playchess.com"]
[Source "ChessBase"]
[SourceQuality "1"]
[TimeControl "40/5400+30:1800+30"]

1. c4 {[%emt 0:00:00]} Nf6 {[%emt 0:00:00]} 2. Nc3 {[%emt 0:00:00]} e6 {[%emt 0:00:00]} 3. Nf3 {[%emt 0:00:00]} d5 {[%emt 0:01:39]} 4. d4 {[%emt 0:00:00]} Bb4 {[%emt 0:06:20]} 5. Qa4+ {[%emt 0:05:33]} Nc6 {[%emt 0:00:07]} 6. e3 {[%emt 0:00:19]} O-O {[%emt 0:04:48]} 7. Bd2 {[%emt 0:00:48]} Qe7 {[%emt 0:16:48] D38: Queen's Gambit Declined: Ragozin Defence (4 Nf3 Bb4)} (7... dxc4 8. Bxc4 Bd6 9. e4 e5 10. dxe5 Nxe5 11. Nxe5 Bxe5 12. O-O-O Qe8 13. Qxe8 Rxe8 14. f3 Be6 15. Bxe6 Rxe6 {½-½ (67) Navara,D (2727)-Harikrishna,P (2732) Prague 2018}) 8. a3 {[%emt 0:11:52]} Bxc3 {[%emt 0:00:15]} 9. Bxc3 {[%emt 0:00:15] LiveBook: 3 Partien} Ne4 {[%emt 0:09:22]} 10. Rc1 {[%emt 0:01:27]} Nxc3 {[%emt 0:07:56]} 11. Rxc3 {[%emt 0:00:20]} Nb8 {[%emt 0:01:37]} 12. Qc2 {[%emt 0:07:44]} c6 {[%emt 0:04:54]} 13. Bd3 {[%emt 0:00:22]} h6 $146 {[%emt 0:00:28]} ({Predecessor:} 13... g6 14. O-O Nd7 15. Kh1 {1-0 (36) Guimard,C-Caetano Netto,J Sao Paulo 1941}) 14. cxd5 {[%emt 0:05:41]} exd5 {[%emt 0:00:07]} 15. b4 {[%emt 0:00:19]} a6 {[%emt 0:04:38]} 16. O-O {[%emt 0:00:27]} Qd6 {[%emt 0:00:41]} 17. Rb1 {[%emt 0:02:14]} Bd7 {[%emt 0:08:20]} 18. a4 {[%emt 0:08:19]} Rc8 {[%emt 0:00:15]} 19. Ne5 {[%emt 0:01:00]} Be8 {[%emt 0:00:19]} 20. h3 {[%emt 0:15:11]} Nd7 {[%emt 0:01:19]} 21. Bh7+ {[%emt 0:00:20]} Kh8 {[%emt 0:03:46]} 22. Bf5 {[%emt 0:00:17]} Nxe5 {[%emt 0:00:58]} 23. dxe5 {[%emt 0:00:40]} Qxe5 {[%emt 0:00:08]} 24. Bxc8 {[%emt 0:00:05]} Rxc8 {[%emt 0:00:05]} 25. Qd2 {[%emt 0:00:31]} Bd7 {[%emt 0:03:18]} 26. Qd4 {[%emt 0:01:16]} Qe6 {[%emt 0:01:59]} 27. Rd1 {[%emt 0:14:12]} Re8 {[%emt 0:02:09]} 28. Rcc1 {[%emt 0:05:17]} Qg6 {[%emt 0:01:17]} 29. Kh2 {[%emt 0:01:17]} Re4 {[%emt 0:01:34]} 30. Qc5 {[%emt 0:00:29]} Re5 {[%emt 0:03:56]} 31. Rd4 {[%emt 0:02:41]} Rg5 {[%emt 0:02:04]} 32. g4 {[%emt 0:01:32]} Re5 {[%emt 0:07:46]} 33. Rf4 {[%emt 0:01:04]} Kh7 {[%emt 0:03:04]} 34. Qc2 {[%emt 0:02:46]} Re4 $16 {[%emt 0:00:44]} 35. Rxe4 {[%emt 0:01:20]} dxe4 {[%emt 0:00:06]} 36. Rd1 {[%emt 0:00:58]} Be6 {[%emt 0:00:36]} 37. f4 {[%emt 0:01:26]} f5 {[%emt 0:02:15]} 38. Rd6 {[%emt 0:05:34]} fxg4 {[%emt 0:01:38]} 39. Qg2 {[%emt 0:00:07]} Qf5 {[%emt 0:00:53]} 40. Qxg4 {[%emt 0:01:21]} Qxg4 {[%emt 0:00:19]} 41. hxg4 {[%emt 0:30:13]} Bxg4 {[%emt 0:30:04]} 42. Kg3 {[%emt 0:03:49]} Be2 {[%emt 0:01:42]} 43. f5 {[%emt 0:00:00]} h5 {[%emt 0:00:00]} 44. Kh4 {[%emt 0:00:00]} Kg8 {[%emt 0:00:00]} 45. Rd7 {[%emt 0:00:00]} b6 {[%emt 0:00:00]} 46. Rc7 {[%emt 0:00:00]} c5 {[%emt 0:00:00]} 47. bxc5 {[%emt 0:00:00]} bxc5 {[%emt 0:00:00]} 48. Rxc5 {[%emt 0:00:00]} Kf7 {[%emt 0:00:00]} 49. Kg5 {[%emt 0:00:00]} Bg4 {[%emt 0:00:00]} 50. Rc7+ {[%emt 0:00:00]} Kf8 {[%emt 0:00:00]} 51. Ra7 {[%emt 0:00:00]} Be2 {[%emt 0:00:00]} 52. a5 {[%emt 0:00:00]} 1-0